bitfinex-derivatives/quotes_ETHF0:USTF0_20250927
["timestamp","ask_amount","ask_price","bid_price","bid_amount"]
[1758955838585,1.23272605,4019.1,4019.0,4.79586]
[1758955844786,0.90292605,4019.1,4019.0,4.79586]
[1758955849197,0.68822605,4019.1,4019.0,4.79586]
[1758955853302,0.47612605,4019.1,4019.0,7.54029828]
[1758955853506,0.00312747,4019.1,4019.0,7.54029828]
[1758955856318,0.00312747,4019.1,4019.0,6.19962346]
[1758955858018,0.00312747,4019.1,4019.0,2.99182346]
[1758955858220,0.00312747,4019.1,4019.0,6.19962346]
[1758955860026,0.00312747,4019.1,4019.0,2.99182346]
[1758955860318,0.00312747,4019.1,4019.0,6.19962346]
[1758955863420,0.00312747,4019.1,4019.0,7.99187225]
[1758955868414,0.00312747,4019.1,4019.0,6.19962346]
[1758955877328,0.2131,4020.4,4020.3,1.20882]
[1758955877629,0.68609858,4020.4,4020.3,2.86158346]
[1758955877930,1.00769858,4020.4,4020.3,2.86158346]
[1758955878423,1.01070953,4020.4,4020.3,2.86158346]
[1758955878631,1.01070953,4020.4,4020.3,2.5835049]
[1758955878933,1.23630953,4020.4,4020.3,2.5835049]
[1758955884534,0.76331095,4020.4,4020.3,2.5835049]
[1758955884834,1.23630953,4020.4,4020.3,2.5835049]
[1758955886132,0.76331095,4020.4,4020.3,2.5835049]
[1758955886333,1.23630953,4020.4,4020.3,2.5835049]
[1758955888742,0.76331095,4020.4,4020.3,2.5835049]
[1758955891544,0.76331095,4020.4,4020.3,1.45782]
[1758955891737,0.76331095,4020.4,4020.3,2.5835049]
[1758955893840,1.23630953,4020.4,4020.3,2.5835049]
[1758955897044,0.76331095,4020.4,4020.3,2.5835049]
[1758955897243,1.23630953,4020.4,4020.3,2.5835049]
[1758955904747,0.76331095,4020.4,4020.3,2.5835049]
[1758955905741,1.23630953,4020.4,4020.3,2.5835049]
[1758955906152,1.23630953,4020.4,4020.3,0.7614]
[1758955906452,1.18652,4020.3,4020.0,2.12134552]
[1758955906649,1.18652,4020.3,4020.1,0.249]
[1758955906650,0.7391,4020.2,4020.1,0.249]
[1758955907057,1.21209858,4020.2,4020.1,0.585]
[1758955907458,1.71938236,4020.2,4020.1,0.585]
[1758955909751,1.71938236,4020.2,4020.1,0.7896]
[1758955911550,1.71938236,4020.2,4020.1,1.0166]
[1758955911752,0.98028236,4020.2,4020.1,1.0166]
[1758955912552,0.98028236,4020.2,4020.1,2.1422849]
[1758955913159,0.50728378,4020.2,4020.1,2.1422849]
[1758955913462,0.53471095,4020.4,4020.3,0.7676]
[1758955913669,1.04176761,4020.4,4020.3,1.0166]
[1758955913868,1.51476619,4020.4,4020.3,1.0166]
[1758955919362,1.72216619,4020.4,4020.3,1.0166]
[1758955920064,1.72216619,4020.4,4020.3,1.46402]
[1758955921365,2.16957619,4020.4,4020.3,1.23702]
[1758955924566,1.72216619,4020.4,4020.3,1.23702]
[1758955926065,1.24916761,4020.4,4020.3,1.23702]
[1758955926266,1.72216619,4020.4,4020.3,1.23702]
[1758955928069,1.24916761,4020.4,4020.3,1.23702]
[1758955928260,1.72216619,4020.4,4020.3,1.23702]
[1758955929570,2.16957619,4020.4,4020.3,1.23702]
[1758955938179,1.69657761,4020.4,4020.3,1.23702]
[1758955938478,2.16957619,4020.4,4020.3,1.23702]
[1758955942582,2.16957619,4020.4,4020.3,0.90102]
[1758955942881,2.16957619,4020.4,4020.3,1.22092]
[1758955943382,2.16957619,4020.4,4020.3,1.43632]
[1758955946886,2.16957619,4020.4,4020.3,0.7735]
[1758955947089,2.16957619,4020.4,4020.3,0.249]
[1758955947491,2.16957619,4020.4,4020.3,1.23612]
[1758955949092,1.69657761,4020.4,4020.3,1.23612]
[1758955949283,2.16957619,4020.4,4020.3,1.23612]
[1758955952291,1.69657761,4020.4,4020.3,1.23612]
[1758955952495,2.16957619,4020.4,4020.3,1.23612]
[1758955953598,1.69657761,4020.4,4020.3,1.23612]
[1758955953794,1.20092,4020.3,4020.2,3.2078]
[1758955953993,2.18097524,4020.3,4020.2,3.4568]
[1758955954500,2.18097524,4020.3,4020.2,3.5277]
[1758955954699,2.18097524,4020.3,4020.2,3.7767]
[1758955955390,2.18097524,4020.3,4020.2,3.9965]
[1758955956096,2.18218831,4020.3,4020.2,3.9965]
[1758955957399,1.70918973,4020.3,4020.2,3.9965]
[1758955957701,2.18218831,4020.3,4020.2,3.9965]
[1758955958696,2.18218831,4020.3,4020.2,3.4568]
[1758955960006,2.18218831,4020.3,4020.2,3.7767]
[1758955960207,2.18218831,4020.3,4020.2,3.9965]
[1758955960706,2.18218831,4020.3,4020.2,0.7887]
[1758955963007,0.44746,4020.0,4019.9,3.2078]
[1758955963306,1.68865858,4020.0,4019.9,3.6762]
[1758955963502,2.32642877,4020.0,4019.9,3.7358]
[1758955963709,2.32642877,4020.0,4019.9,3.2078]
[1758955963896,2.32642877,4020.0,4019.9,3.4568]
[1758955964100,2.32642877,4020.0,4019.9,0.249]
[1758955964810,1.21569,4019.7,4019.6,0.528]
[1758955965117,2.19685877,4019.7,4019.6,0.777]
[1758955965301,2.19685877,4019.7,4019.6,0.9845]
[1758955970613,2.19685877,4019.7,4019.6,0.7355]
[1758955970812,2.19685877,4019.7,4019.6,0.777]
[1758955973914,0.57711,4019.5,4019.4,3.5164]
[1758955974216,1.81830858,4019.5,4019.4,3.7654]
[1758955974408,1.81830858,4019.5,4019.4,3.9848]
[1758955977116,1.68870858,4019.5,4019.4,4.1923]
[1758955984124,2.19705474,4019.5,4019.4,4.1923]
[1758955990820,1.42885474,4019.5,4019.4,4.1923]
[1758955991423,0.44749,4019.7,4019.5,0.58081]
[1758955991727,0.44749,4019.7,4019.6,0.9844]
[1758955992021,0.95622741,4019.7,4019.6,0.9844]
[1758955992221,1.42922599,4019.7,4019.6,0.9844]
[1758955996627,1.95642599,4019.7,4019.6,0.9844]
[1758955998627,1.95642599,4019.7,4019.6,0.5186]
[1758955998833,2.16172599,4019.7,4019.6,0.7676]
[1758955999234,2.16172599,4019.7,4019.6,0.5186]
[1758955999433,1.30311,4019.5,4019.4,3.7386]
[1758955999640,1.68874741,4019.5,4019.4,4.2063]
[1758955999831,2.16174599,4019.5,4019.4,4.2063]
[1758956003842,2.16174599,4019.5,4019.4,3.9573]
[1758956004042,2.16174599,4019.5,4019.4,4.2063]
[1758956006737,1.68874741,4019.5,4019.4,4.2063]
[1758956007738,1.68874741,4019.5,4019.4,3.9573]
[1758956007938,1.68874741,4019.5,4019.4,4.2063]
[1758956014754,2.16174599,4019.5,4019.4,4.2063]
[1758956015656,2.16174599,4019.5,4019.4,0.9985]
[1758956025571,1.68874741,4019.5,4019.4,0.9985]
[1758956025866,2.16174599,4019.5,4019.4,0.9985]
[1758956026967,1.68874741,4019.5,4019.4,0.9985]
[1758956027164,2.16174599,4019.5,4019.4,0.9985]
[1758956033672,2.16148485,4019.5,4019.4,0.9985]
[1758956039076,2.28478485,4019.5,4019.4,0.249]
[1758956039977,0.44753,4019.3,4019.2,1.86449552]
[1758956040179,1.71270627,4019.3,4019.2,2.56104552]
[1758956040379,2.18570485,4019.3,4019.2,2.56104552]
[1758956040679,2.18570485,4019.3,4019.2,2.77754552]
[1758956041578,1.67722858,4019.3,4019.2,2.77754552]
[1758956042683,1.20423,4019.3,4019.2,2.77754552]
[1758956042885,1.20423,4019.3,4019.2,2.32999552]
[1758956043379,1.20423,4019.3,4019.2,2.77754552]
[1758956044978,0.44752,4019.5,4019.2,1.58689552]
[1758956045190,0.66362,4019.5,4019.4,0.7431]
[1758956045487,1.50135863,4019.5,4019.4,0.9921]
[1758956045983,1.50135863,4019.5,4019.4,1.43962]
[1758956047785,1.97435721,4019.5,4019.4,1.43962]
[1758956047982,2.18075721,4019.5,4019.4,1.43962]
[1758956048184,2.18075721,4019.5,4019.4,0.9921]
[1758956048585,1.85145721,4019.5,4019.4,1.43962]
[1758956048783,2.17535721,4019.5,4019.4,1.43962]
[1758956050385,2.17535721,4019.5,4019.4,0.9921]
[1758956051486,1.70235863,4019.5,4019.4,0.9921]
[1758956051687,2.17535721,4019.5,4019.4,0.9921]
[1758956052789,1.70235863,4019.5,4019.4,0.9921]
[1758956054488,1.25483863,4019.5,4019.4,1.43962]
[1758956054678,1.70234863,4019.5,4019.4,1.43962]
[1758956056393,0.50843863,4019.5,4019.4,2.56602353]
[1758956056590,0.50843863,4019.5,4019.4,3.90391905]
[1758956057398,0.66989,4019.7,4019.6,0.4307]
[1758956057585,1.5075305,4019.7,4019.6,1.0185]
[1758956057785,1.98052908,4019.7,4019.6,1.0185]
[1758956062898,2.19492908,4019.7,4019.6,1.0185]
[1758956063101,2.19478789,4019.7,4019.6,1.0185]
[1758956063695,0.3292,4020.0,4019.6,2.42191721]
[1758956063999,0.3292,4020.0,4019.9,0.7695]
[1758956064000,1.02459858,4020.0,4019.9,0.7695]
[1758956064298,2.00583629,4020.0,4019.9,1.0185]
[1758956064692,1.53283771,4020.0,4019.9,1.0185]
[1758956064904,0.2224,4019.8,4019.7,1.67669552]
[1758956065111,0.766,4019.8,4019.7,2.14779552]
[1758956065310,0.766,4019.8,4019.7,0.8099]
[1758956065503,0.44749,4019.7,4019.6,1.33789552]
[1758956065810,1.68648858,4019.7,4019.6,0.249]
[1758956066010,1.68648858,4019.7,4019.6,0.8099]
[1758956069712,1.23899858,4019.7,4019.6,0.8099]
[1758956071903,1.23899858,4019.7,4019.6,1.0185]
[1758956073312,1.23899858,4019.7,4019.6,1.466]
[1758956078517,0.90979858,4019.7,4019.6,1.466]
[1758956078817,0.5516,4020.0,4019.9,1.21697]
[1758956079013,1.53252872,4020.0,4019.9,1.46597]
[1758956080514,1.74692872,4020.0,4019.9,1.46597]
[1758956088331,1.27393014,4020.0,4019.9,1.46597]
[1758956088531,1.74692872,4020.0,4019.9,1.46597]
[1758956094133,0.73033014,4020.0,4019.9,1.46597]
[1758956095127,1.06759172,4020.0,4019.9,1.46597]
[1758956095831,0.72999172,4020.0,4019.9,1.46597]
[1758956096233,0.2224,4020.0,4019.9,1.46597]
[1758956096428,0.00301095,4020.4,4020.1,1.19554]
[1758956096429,0.547,4020.2,4020.1,1.19554]
[1758956096636,1.52756232,4020.2,4020.1,1.44454]
[1758956096823,1.18996232,4020.2,4020.1,1.44454]
[1758956097425,0.68239858,4020.2,4020.1,1.44454]
[1758956097633,1.01999858,4020.2,4020.1,1.44454]
[1758956097832,0.2094,4020.2,4020.1,1.44454]
[1758956099237,0.547,4020.2,4020.1,1.44454]
[1758956100731,0.7664,4020.2,4020.1,0.9971]
[1758956100939,0.7664,4020.1,4020.0,3.2078]
[1758956101234,1.7468055,4020.1,4020.0,3.4568]
[1758956102336,1.7468055,4020.1,4020.0,3.90426]
[1758956102939,1.7468055,4020.1,4020.0,0.77896]
[1758956103139,1.7468055,4020.1,4020.0,1.02796]
[1758956103837,1.7468055,4020.1,4020.0,0.69646]
[1758956104645,1.7468055,4020.1,4020.0,1.57766]
[1758956105641,1.7468055,4020.1,4020.0,1.44456]
[1758956113247,1.27380692,4020.1,4020.0,1.44456]
[1758956113447,2.1942455,4020.1,4020.0,1.44456]
[1758956115046,1.72124692,4020.1,4020.0,1.44456]
[1758956115241,2.1942455,4020.1,4020.0,1.44456]
[1758956116350,1.72124692,4020.1,4020.0,1.44456]
[1758956116647,2.1942455,4020.1,4020.0,0.9971]
[1758956116949,2.1942455,4020.1,4020.0,0.7919]
[1758956117246,2.1942455,4020.1,4020.0,0.249]
[1758956119452,2.1942455,4020.1,4020.0,0.5802]
[1758956120243,2.1942455,4020.1,4020.0,0.7876]
[1758956121459,2.1942455,4020.1,4020.0,0.249]
[1758956122457,2.1942455,4020.1,4020.0,0.5802]
[1758956122656,2.1942455,4020.1,4020.0,0.7876]
[1758956123961,1.72124692,4020.1,4020.0,0.7876]
[1758956124155,2.1942455,4020.1,4020.0,0.7876]
[1758956125748,2.1942455,4020.1,4020.0,0.249]
[1758956126463,2.1942455,4020.1,4020.0,0.5802]
[1758956127062,2.1942455,4020.1,4020.0,0.7876]
[1758956128158,2.1942455,4020.1,4020.0,0.5386]
[1758956128349,1.19107,4019.9,4019.8,1.87649552]
[1758956128551,1.19107,4019.9,4019.8,2.12549552]
[1758956128855,1.66406858,4019.9,4019.8,2.12549552]
[1758956129357,2.79016303,4019.9,4019.8,1.58689552]
[1758956129557,3.2975883,4019.9,4019.8,2.12549552]
[1758956130364,3.2975883,4019.9,4019.8,2.34359552]
[1758956132365,3.2975883,4019.9,4019.8,2.09459552]
[1758956132566,3.2975883,4019.9,4019.8,2.34359552]
[1758956132767,3.2975883,4019.9,4019.8,2.12549552]
[1758956133070,2.9727883,4019.9,4019.8,0.249]
[1758956133266,3.2975883,4019.9,4019.8,0.249]
[1758956134265,1.19109,4019.7,4019.6,1.33789552]
[1758956134475,1.19109,4019.7,4019.6,1.58689552]
[1758956134764,1.66408858,4019.7,4019.6,1.58689552]
[1758956135460,1.66408858,4019.7,4019.6,0.249]
[1758956137163,1.21659858,4019.7,4019.6,0.7876]
[1758956137471,1.21659858,4019.7,4019.6,1.4532]
[1758956139574,0.7436,4019.7,4019.6,1.4532]
[1758956139773,1.21659858,4019.7,4019.6,1.4532]
[1758956140876,0.7436,4019.7,4019.6,1.4532]
[1758956141178,1.21659858,4019.7,4019.6,1.4532]
[1758956144078,0.7436,4019.7,4019.6,1.4532]
[1758956144372,0.47299858,4019.7,4019.6,1.4532]
[1758956144578,3.9458,4020.1,4020.0,0.8849]
[1758956144878,4.45284259,4020.1,4020.0,1.1339]
[1758956145070,4.92584117,4020.1,4020.0,1.1339]
[1758956147078,4.41879858,4020.1,4020.0,1.1339]
[1758956147475,4.11159858,4020.1,4020.0,1.1339]
[1758956147680,3.90039858,4020.1,4020.0,1.1339]
[1758956148070,4.20759858,4020.1,4020.0,1.1339]
[1758956151181,0.99979858,4020.1,4020.0,1.1339]
[1758956152281,0.00301095,4020.4,4020.3,1.20952]
[1758956152490,0.00301095,4020.4,4020.3,2.58461445]
[1758956153378,0.00301095,4020.4,4020.3,3.92218211]
[1758956154481,0.74101095,4020.4,4020.3,2.79608766]
[1758956157379,0.74101095,4020.4,4020.3,1.45852]
[1758956158181,0.74101095,4020.4,4020.3,4.66632]
[1758956158380,1.21400953,4020.4,4020.3,4.44662]
[1758956162483,1.21400953,4020.4,4020.3,4.66632]
[1758956164691,0.47600953,4020.4,4020.3,4.66632]
[1758956165390,1.00280953,4020.4,4020.3,4.66632]
[1758956165990,1.21400953,4020.4,4020.3,3.65522]
[1758956166192,1.21400953,4020.4,4020.3,3.90422]
[1758956166687,1.21400953,4020.4,4020.3,4.23532]
[1758956166888,1.21400953,4020.4,4020.3,4.44662]
[1758956167492,1.21400953,4020.4,4020.3,4.66072]
[1758956172285,0.90680953,4020.4,4020.3,4.66072]
[1758956172593,0.69560953,4020.4,4020.3,4.66072]
[1758956172789,0.47600953,4020.4,4020.3,4.66072]
[1758956178293,0.00301095,4020.4,4020.3,4.66072]
[1758956178492,0.47600953,4020.4,4020.3,4.66072]
[1758956183804,0.00301095,4020.4,4020.3,4.66072]
[1758956184801,0.47600953,4020.4,4020.3,4.66072]
[1758956186596,0.9822216,4020.4,4020.3,4.66072]
[1758956191796,0.47600953,4020.4,4020.3,5.99828766]
[1758956192002,0.00301095,4020.4,4020.3,5.99828766]
[1758956192205,0.00301095,4020.4,4020.3,4.66072]
[1758956194308,0.00301095,4020.4,4020.3,5.99980624]
[1758956194709,0.00301095,4020.4,4020.3,4.66072]
[1758956201723,3.2078,4021.2,4021.1,0.44733]
[1758956202024,4.18676102,4021.2,4021.1,1.45513]
[1758956202516,4.41316102,4021.2,4021.1,1.45513]
[1758956202719,4.41537877,4021.2,4021.1,1.45513]
[1758956203310,4.74047877,4021.2,4021.1,1.45513]
[1758956203813,4.94667877,4021.2,4021.1,1.45513]
[1758956204920,4.47368019,4021.2,4021.1,1.45513]
[1758956205119,4.94667877,4021.2,4021.1,1.45513]
[1758956206327,4.44071633,4021.2,4021.1,1.45513]
[1758956209634,3.90941633,4021.2,4021.1,1.45513]
[1758956210931,4.23451633,4021.2,4021.1,1.45513]
[1758956213031,4.44071633,4021.2,4021.1,1.45513]
[1758956213435,3.90941633,4021.2,4021.1,1.45513]
[1758956213636,4.44071633,4021.2,4021.1,1.45513]
[1758956214334,4.44071633,4021.2,4021.1,1.20613]
[1758956214536,3.96771775,4021.2,4021.1,1.45513]
[1758956214833,4.44071633,4021.2,4021.1,1.45513]
[1758956215333,4.44071633,4021.2,4021.1,1.24823]
[1758956215930,4.44071633,4021.2,4021.1,0.44733]
[1758956216135,0.8732,4021.0,4020.9,0.44735]
[1758956216438,0.8732,4021.0,4020.9,0.69635]
[1758956216728,1.34619858,4021.0,4020.9,0.69635]
[1758956226344,1.79353858,4021.0,4020.9,0.249]
[1758956226946,1.79353858,4021.0,4020.9,0.69636]
[1758956229345,1.34619858,4021.0,4020.9,0.69636]
[1758956229940,1.34619858,4021.0,4020.9,1.02016]
[1758956230141,1.34619858,4021.0,4020.9,1.23276]
[1758956231347,1.85171541,4021.0,4020.9,1.23276]
[1758956234141,0.97666,4020.9,4020.8,1.33797218]
[1758956234352,2.17537541,4020.9,4020.8,0.7742]
[1758956234847,2.17537541,4020.9,4020.8,1.22157]
[1758956239250,2.17537541,4020.9,4020.8,1.43887]
[1758956243253,2.17537541,4020.9,4020.8,0.9915]
[1758956243457,2.17537541,4020.9,4020.8,0.7742]
[1758956244157,2.17537541,4020.9,4020.8,0.4658]
[1758956244449,2.17537541,4020.9,4020.8,0.249]
[1758956245056,2.17537541,4020.9,4020.8,0.5574]
[1758956245557,2.17537541,4020.9,4020.8,0.7742]
[1758956245759,1.70237683,4020.9,4020.8,0.7742]
[1758956246056,2.17537541,4020.9,4020.8,0.7742]
[1758956246559,3.30110164,4020.9,4020.8,0.5252]
[1758956246760,1.19688,4020.7,4020.6,4.18039]
[1758956246953,1.19688,4020.7,4020.6,4.64669]
[1758956247153,1.66987858,4020.7,4020.6,4.64669]
[1758956250263,1.66987858,4020.7,4020.6,4.1993]
[1758956252866,1.66987858,4020.7,4020.6,4.64669]
[1758956255267,2.17518658,4020.7,4020.6,4.64669]
[1758956255862,1.50760658,4020.7,4020.6,4.64669]
[1758956256163,1.12947858,4020.7,4020.6,4.64669]
[1758956259870,1.12947858,4020.7,4020.6,4.1993]
[1758956260261,1.63499003,4020.7,4020.6,4.1993]
[1758956268874,1.95529003,4020.7,4020.6,4.1993]
[1758956269976,2.16569003,4020.7,4020.6,4.1993]
[1758956272383,1.69269145,4020.7,4020.6,4.1993]
[1758956272572,2.16569003,4020.7,4020.6,4.1993]
[1758956275181,1.69269145,4020.7,4020.6,4.1993]
[1758956275381,2.16569003,4020.7,4020.6,4.1993]
[1758956275881,2.16569003,4020.7,4020.6,3.9503]
[1758956276084,2.16569003,4020.7,4020.6,3.4246]
[1758956276278,2.16569003,4020.7,4020.6,3.6736]
[1758956276679,2.16569003,4020.7,4020.6,3.9853]
[1758956278684,2.16569003,4020.7,4020.6,0.7775]
[1758956278879,1.1873,4020.5,4020.4,1.86157218]
[1758956279081,3.29153626,4020.5,4020.4,2.11057218]
[1758956280678,3.29153626,4020.5,4020.4,0.7726]
[1758956280880,3.41793626,4020.5,4020.4,0.7726]
[1758956281683,3.41793626,4020.5,4020.4,0.249]
[1758956282090,3.41793626,4020.5,4020.4,0.5607]
[1758956282491,3.41793626,4020.5,4020.4,0.7726]
[1758956282686,3.41793626,4020.5,4020.4,0.5236]
[1758956282893,3.41793626,4020.5,4020.4,0.7726]
[1758956284384,0.76773,4020.2,4020.1,0.5236]
[1758956284592,2.81856768,4020.2,4020.1,0.7726]
[1758956284790,3.29156626,4020.2,4020.1,0.7726]
[1758956287092,3.29156626,4020.2,4020.1,0.5236]
[1758956287286,3.29156626,4020.2,4020.1,0.7726]
[1758956294189,2.78605481,4020.2,4020.1,0.7726]
[1758956298398,2.78605481,4020.2,4020.1,0.249]
[1758956299694,2.78605481,4020.2,4020.1,0.5747]
[1758956299998,2.78605481,4020.2,4020.1,0.7875]
[1758956300299,3.28949702,4020.2,4020.1,0.7875]
[1758956303404,2.81649844,4020.2,4020.1,0.7875]
[1758956303699,3.28949702,4020.2,4020.1,0.7875]
[1758956308703,2.16377079,4020.2,4020.1,0.7875]
[1758956311009,2.16377079,4020.2,4020.1,0.5385]
[1758956311203,1.19114,4020.1,4020.0,3.5335]
[1758956311404,2.16758079,4020.1,4020.0,3.7825]
[1758956312207,2.16758079,4020.1,4020.0,3.9953]
[1758956314006,2.16758079,4020.1,4020.0,4.44276]
[1758956314608,2.16758079,4020.1,4020.0,3.9953]
[1758956317208,2.16758079,4020.1,4020.0,4.2128]
[1758956318907,2.16758079,4020.1,4020.0,3.9638]
[1758956319107,2.16758079,4020.1,4020.0,0.7875]
[1758956320406,2.16758079,4020.1,4020.0,1.23496]
[1758956320612,2.16758079,4020.1,4020.0,1.005]
[1758956321910,1.69458221,4020.1,4020.0,1.005]
[1758956326416,1.69458221,4020.1,4020.0,1.1307]
[1758956328919,2.16758079,4020.1,4020.0,1.1307]
[1758956330021,1.72014079,4020.1,4020.0,1.1307]
[1758956331624,1.72014079,4020.1,4020.0,1.57816]
[1758956334527,1.24714221,4020.1,4020.0,1.57816]
[1758956334728,1.72014079,4020.1,4020.0,1.57816]
[1758956340141,1.24714221,4020.1,4020.0,1.57816]
[1758956340338,1.72014079,4020.1,4020.0,1.57816]
[1758956340543,1.72014079,4020.1,4020.0,1.45246]
[1758956342255,1.24714221,4020.1,4020.0,1.45246]
[1758956342436,1.72014079,4020.1,4020.0,1.45246]
[1758956346944,1.72014079,4020.1,4020.0,1.58136]
[1758956348245,1.24714221,4020.1,4020.0,1.58136]
[1758956348440,1.72014079,4020.1,4020.0,1.58136]
[1758956352252,1.24714221,4020.1,4020.0,1.58136]
[1758956352439,1.72014079,4020.1,4020.0,1.58136]
[1758956353748,1.24714221,4020.1,4020.0,1.58136]
[1758956360048,0.93134221,4020.1,4020.0,1.58136]
[1758956360350,1.24174221,4020.1,4020.0,1.58136]
[1758956361853,1.71474079,4020.1,4020.0,1.58136]
[1758956362959,1.24174221,4020.1,4020.0,1.58136]
[1758956363153,1.71474079,4020.1,4020.0,1.58136]
[1758956363343,1.40434079,4020.1,4020.0,1.58136]
[1758956363550,1.19814079,4020.1,4020.0,1.58136]
[1758956365756,1.03554221,4020.1,4020.0,1.58136]
[1758956366057,1.50854079,4020.1,4020.0,1.58136]
[1758956367859,1.03554221,4020.1,4020.0,1.58136]
[1758956368063,1.50854079,4020.1,4020.0,1.58136]
[1758956369163,1.03554221,4020.1,4020.0,1.58136]
[1758956369462,1.50854079,4020.1,4020.0,1.58136]
[1758956371262,1.72254079,4020.1,4020.0,1.58136]
[1758956372377,1.24954221,4020.1,4020.0,1.58136]
[1758956372557,1.72254079,4020.1,4020.0,1.58136]
[1758956373667,1.24954221,4020.1,4020.0,1.58136]
[1758956373865,1.72254079,4020.1,4020.0,1.58136]
[1758956375767,1.24954221,4020.1,4020.0,1.58136]
[1758956380367,0.72514221,4020.1,4020.0,1.58136]
[1758956391082,0.50344221,4020.1,4020.0,1.58136]
[1758956391374,4.78132999,4020.5,4020.3,1.21232]
[1758956391375,1.04702148,4020.4,4020.3,1.21232]
[1758956391575,1.26332148,4020.4,4020.3,1.46132]
[1758956392477,1.71073148,4020.4,4020.3,1.46132]
[1758956394878,1.71073148,4020.4,4020.3,1.0139]
[1758956395876,2.18373006,4020.4,4020.3,1.0139]
[1758956400882,2.18370175,4020.4,4020.3,1.0139]
[1758956402683,2.18370175,4020.4,4020.3,0.7972]
[1758956402981,2.18370175,4020.4,4020.3,0.5482]
[1758956405087,0.4304,4020.1,4020.0,0.2089]
[1758956405280,2.38942316,4020.1,4020.0,0.7972]
[1758956405478,2.86242174,4020.1,4020.0,0.7972]
[1758956405985,3.30986174,4020.1,4020.0,0.7972]
[1758956408591,1.73629175,4020.1,4020.0,1.58686]
[1758956408888,2.18373175,4020.1,4020.0,1.58686]
[1758956409382,2.18373175,4020.1,4020.0,1.1394]
[1758956409896,1.73629175,4020.1,4020.0,1.1394]
[1758956410080,2.18373175,4020.1,4020.0,1.1394]
[1758956410284,1.73629175,4020.1,4020.0,1.58686]
[1758956410493,1.19159175,4020.1,4020.0,1.58686]
[1758956410890,1.96553175,4020.1,4020.0,1.1394]
[1758956411292,2.18373175,4020.1,4020.0,1.0149]
[1758956411686,1.73629175,4020.1,4020.0,1.0149]
[1758956411887,1.73629175,4020.1,4020.0,1.46236]
[1758956412594,2.18373175,4020.1,4020.0,1.46236]
[1758956413196,1.73629175,4020.1,4020.0,1.46236]
[1758956414094,1.73629175,4020.1,4020.0,1.59566]
[1758956414900,1.73629175,4020.1,4020.0,1.46236]
[1758956415599,2.18373175,4020.1,4020.0,1.46236]
[1758956416196,1.73629175,4020.1,4020.0,1.46236]
[1758956417499,1.26329317,4020.1,4020.0,1.46236]
[1758956417797,1.73629175,4020.1,4020.0,1.46236]
[1758956419100,1.26329317,4020.1,4020.0,1.46236]
[1758956419297,1.73629175,4020.1,4020.0,1.46236]
[1758956421200,1.26329317,4020.1,4020.0,1.46236]
[1758956421402,1.73629175,4020.1,4020.0,1.46236]
[1758956421804,1.73629175,4020.1,4020.0,1.59566]
[1758956426003,1.26329317,4020.1,4020.0,1.59566]
[1758956426206,1.73629175,4020.1,4020.0,1.59566]
[1758956427309,1.26329317,4020.1,4020.0,1.59566]
[1758956427496,1.73629175,4020.1,4020.0,1.59566]
[1758956428408,1.73629175,4020.1,4020.0,1.46236]
[1758956429710,1.73629175,4020.1,4020.0,1.59566]
[1758956432610,1.73629175,4020.1,4020.0,2.93363218]
[1758956433310,1.73629175,4020.1,4020.0,1.59566]
[1758956433706,1.51809175,4020.1,4020.0,1.59566]
[1758956433916,3.2078,4020.5,4020.4,0.44741]
[1758956434209,3.71187277,4020.5,4020.4,1.44891]
[1758956434407,3.2078,4020.5,4020.4,6.44891]
[1758956436412,3.737,4020.5,4020.4,1.19991]
[1758956436616,4.56179858,4020.5,4020.4,1.23851]
[1758956438914,4.0888,4020.5,4020.4,1.23851]
[1758956448823,4.56179858,4020.5,4020.4,1.23851]
[1758956451932,1.35399858,4020.5,4020.4,1.23851]
[1758956453924,0.881,4020.5,4020.4,1.23851]
[1758956454118,1.35399858,4020.5,4020.4,1.23851]
[1758956454523,0.881,4020.5,4020.4,1.23851]
[1758956454817,1.35399858,4020.5,4020.4,1.23851]
[1758956457132,0.881,4020.5,4020.4,1.23851]
[1758956457426,1.22499858,4020.5,4020.4,1.46461]
[1758956460228,0.47299858,4020.5,4020.4,1.46461]
[1758956461530,0.97366121,4020.5,4020.4,1.46461]
[1758956463933,1.19006121,4020.5,4020.4,1.46461]
[1758956464126,1.52846121,4020.5,4020.4,1.46461]
[1758956464836,1.74636121,4020.5,4020.4,1.46461]
[1758956466135,1.27336263,4020.5,4020.4,1.46461]
[1758956466336,1.74636121,4020.5,4020.4,1.46461]
[1758956469639,1.27336263,4020.5,4020.4,1.46461]
[1758956469838,1.74636121,4020.5,4020.4,1.46461]
[1758956474243,3.4124,4020.9,4020.8,0.87527]
[1758956474438,4.69415967,4020.9,4020.8,1.45457]
[1758956474840,4.91545967,4020.9,4020.8,1.45457]
[1758956479344,0.50096109,4020.9,4020.8,2.85777497]
[1758956479542,0.00221775,4021.2,4021.1,1.20553]
[1758956479740,0.50339041,4021.2,4021.1,1.45453]
[1758956480336,0.70799041,4021.2,4021.1,1.45453]
[1758956480540,1.01579041,4021.2,4021.1,1.45453]
[1758956481342,0.51461775,4021.2,4021.1,1.45453]
[1758956486949,0.73591775,4021.2,4021.1,1.45453]
[1758956487248,1.20891633,4021.2,4021.1,1.45453]
[1758956487650,1.20891633,4021.2,4021.1,1.23883]
[1758956489452,0.00221775,4021.2,4021.1,10.61820497]
[1758956490458,0.00221775,4021.2,4021.1,12.14792299]
[1758956490845,0.00221775,4021.2,4021.1,11.95283738]
[1758956491253,0.73591775,4021.2,4021.1,4.215]
[1758956492952,0.20681775,4021.2,4021.1,4.215]
[1758956493260,0.00221775,4021.2,4021.1,4.215]
[1758956494355,0.00221775,4021.2,4021.1,5.34041484]
[1758956499264,0.73591775,4021.2,4021.1,3.7503]
[1758956499560,0.73591775,4021.2,4021.1,4.215]
[1758956500065,0.00221775,4021.2,4021.1,4.215]
[1758956502057,0.51461775,4021.2,4021.1,4.215]
[1758956502460,0.20681775,4021.2,4021.1,4.215]
[1758956503262,0.52831775,4021.2,4021.1,3.966]
[1758956503562,0.52831775,4021.2,4021.1,4.215]
[1758956504964,0.20681775,4021.2,4021.1,4.215]
[1758956506070,0.20681775,4021.2,4021.1,4.66233]
[1758956507764,0.52831775,4021.2,4021.1,4.41333]